bitfinex-derivatives/quotes_SOLF0:USTF0_20250221
["timestamp","ask_amount","ask_price","bid_price","bid_amount"]
[1740180795754,5.9102,169.28,169.27,0.04083727]
[1740180795961,15.08536093,169.29,169.27,0.04083727]
[1740180796458,0.04431954,169.3,169.27,0.04083727]
[1740180796658,5.95401954,169.3,169.27,0.04083727]
[1740180796860,0.04431954,169.3,169.27,0.04083727]
[1740180797660,5.95381954,169.3,169.27,0.04083727]
[1740180798355,5.95381954,169.3,169.27,5.95133727]
[1740180799360,0.04431954,169.3,169.27,5.95133727]
[1740180799659,0.04431954,169.3,169.27,0.04083727]
[1740180801361,0.04431954,169.3,169.28,5.9102]
[1740180801560,0.04431954,169.3,169.27,0.04083727]
[1740180801861,0.04431954,169.3,169.28,5.9099]
[1740180802052,0.04431954,169.3,169.27,0.04083727]
[1740180803362,0.04431954,169.3,169.29,5.9098]
[1740180805766,0.04431954,169.3,169.27,0.04083727]
[1740180805966,0.04431954,169.3,169.28,5.91]
[1740180806766,0.04431954,169.3,169.27,5.95123727]
[1740180806967,5.95401954,169.3,169.27,5.95123727]
[1740180807767,5.95401954,169.3,169.28,5.9101]
[1740180807963,5.95401954,169.3,169.27,0.04083727]
[1740180808364,5.9102,169.28,169.27,0.04083727]
[1740180808669,5.9102,169.28,169.27,3.727e-05]
[1740180815670,5.9129,169.21,169.14,5.61393631]
[1740180815879,15.08536093,169.26,169.14,5.61393631]
[1740180816271,15.08536093,169.26,169.13,10.36751584]
[1740180816672,0.03731951,169.21,169.18,0.04183263]
[1740180816873,5.95031951,169.21,169.18,0.04183263]
[1740180817172,0.03731951,169.21,169.18,0.04183263]
[1740180817571,5.913,169.2,169.18,0.04183263]
[1740180817773,0.03731951,169.21,169.19,5.9132]
[1740180818573,0.03731951,169.21,169.18,0.04183263]
[1740180818574,0.03731951,169.21,169.18,5.95543263]
[1740180819072,5.95011951,169.21,169.18,5.95543263]
[1740180820067,5.9133,169.19,169.18,0.04183263]
[1740180821076,5.9133,169.19,169.18,3.263e-05]
[1740180821271,15.08536093,169.2,169.12,63.98988227]
[1740180821473,0.03731951,169.21,169.12,63.98988227]
[1740180821677,15.08536093,169.26,169.12,79.0752432]
[1740180821877,5.9121,169.23,169.19,5.913]
[1740180822276,0.04054159,169.23,169.19,0.04160271]
[1740180822876,0.04054159,169.23,169.22,5.9123]
[1740180823073,3.57,169.28,169.21,15.08536093]
[1740180823477,3.57,169.28,169.27,5.9105]
[1740180824781,3.57,169.28,169.26,0.03745379]
[1740180825281,0.04462026,169.29,169.27,5.9105]
[1740180825682,0.04462026,169.29,169.26,0.03745379]
[1740180826782,0.04462026,169.29,169.28,5.9102]
[1740180835100,0.04462026,169.29,169.26,0.03745379]
[1740180836400,0.04462026,169.29,169.27,5.9105]
[1740180836590,0.04462026,169.29,169.26,0.03745379]
[1740180837508,0.04462026,169.29,169.28,5.9102]
[1740180839604,0.04462026,169.29,169.27,5.9104]
[1740180840510,0.04462026,169.29,169.26,0.03745379]
[1740180840702,0.04462026,169.29,169.28,5.9102]
[1740180847510,0.04462026,169.29,169.26,0.03745379]
[1740180847806,0.04462026,169.29,169.26,5.94805379]
[1740180847807,5.95472026,169.29,169.26,5.94805379]
[1740180848308,0.04462026,169.29,169.26,0.03745379]
[1740180849309,5.95452026,169.29,169.26,5.94825379]
[1740180849704,0.04462026,169.29,169.26,0.03745379]
[1740180849906,5.9103,169.28,169.26,0.03745379]
[1740180850098,0.04462026,169.29,169.26,0.03745379]
[1740180850705,5.95452026,169.29,169.26,0.03745379]
[1740180850907,0.04462026,169.29,169.26,0.03745379]
[1740180852614,5.95472026,169.29,169.26,0.03745379]
[1740180852913,0.04462026,169.29,169.26,0.03745379]
[1740180853211,0.04462026,169.29,169.28,5.9102]
[1740180855611,0.04462026,169.29,169.26,0.03745379]
[1740180855612,11.1874,169.37,169.34,5.908]
[1740180855810,11.1874,169.37,169.27,3.5461]
[1740180856010,1.7203,169.37,169.27,3.5461]
[1740180856208,5.9077,169.35,169.27,3.5461]
[1740180856704,1.7203,169.37,169.27,3.5461]
[1740180856910,0.04158976,169.33,169.29,0.04210286]
[1740180857313,0.04158976,169.33,169.31,5.9091]
[1740180858512,0.04158976,169.33,169.32,5.9088]
[1740180858712,0.04158976,169.33,169.29,0.04210286]
[1740180860512,0.04158976,169.33,169.32,5.9088]
[1740180862112,8.976e-05,169.33,169.32,5.9088]
[1740180862510,8.976e-05,169.33,169.32,20.99416093]
[1740180862918,3.5861,169.43,169.4,5.9059]
[1740180863112,1.7987,169.44,169.4,5.9059]
[1740180863814,5.9051,169.43,169.39,5.9062]
[1740180864316,0.02065883,169.43,169.39,0.03946232]
[1740180864615,5.9054,169.42,169.39,0.03946232]
[1740180864815,0.02065883,169.43,169.39,0.03946232]
[1740180865014,5.9059,169.41,169.39,0.03946232]
[1740180865714,5.9054,169.42,169.39,0.03946232]
[1740180866114,0.02065883,169.43,169.39,0.03946232]
[1740180866915,0.02065883,169.43,169.42,5.9053]
[1740180867108,0.02065883,169.43,169.39,0.03946232]
[1740180867717,5.92585883,169.43,169.39,5.94566232]
[1740180868015,5.92585883,169.43,169.39,0.03946232]
[1740180868016,0.02065883,169.43,169.39,0.03946232]
[1740180868719,5.9055,169.42,169.39,0.03946232]
[1740180869015,0.02065883,169.43,169.39,0.03946232]
[1740180869219,5.906,169.41,169.39,0.03946232]
[1740180869419,0.02065883,169.43,169.39,0.03946232]
[1740180869921,5.906,169.4,169.39,0.03946232]
[1740180870214,15.08536093,169.41,169.3,5.63074462]
[1740180870519,5.9091,169.32,169.28,126.4]
[1740180870721,15.08536093,169.38,169.28,126.4]
[1740180871020,5.9082,169.34,169.29,5.9095]
[1740180871211,5.9082,169.34,169.27,5.3827]
[1740180871409,0.04054853,169.33,169.3,5.95031412]
[1740180872020,0.04054853,169.33,169.32,5.9088]
[1740180872721,0.04054853,169.33,169.3,0.04081412]
[1740180873221,0.04054853,169.33,169.31,5.9091]
[1740180873420,0.04054853,169.33,169.3,0.04081412]
[1740180873921,0.04054853,169.33,169.3,5.95001412]
[1740180874324,0.04054853,169.33,169.3,0.04081412]
[1740180875025,0.04054853,169.33,169.31,5.9091]
[1740180876525,0.04054853,169.33,169.3,0.04081412]
[1740180877022,5.909,169.32,169.3,0.04081412]
[1740180877224,0.04054853,169.33,169.3,0.04081412]
[1740180877420,5.9091,169.31,169.3,0.04081412]
[1740180878219,0.04054853,169.33,169.3,0.04081412]
[1740180878425,5.9089,169.32,169.3,0.04081412]
[1740180880532,5.9091,169.31,169.3,0.04081412]
[1740180884531,15.08536093,169.32,169.15,15.08536093]
[1740180884731,15.08536093,169.29,169.16,1.7951]
[1740180885234,5.9109,169.26,169.22,5.9121]
[1740180885628,5.94899814,169.26,169.22,5.95259578]
[1740180885833,5.94899814,169.26,169.22,0.04049578]
[1740180886032,0.03809814,169.26,169.22,0.04049578]
[1740180886536,0.03809814,169.26,169.25,5.9112]
[1740180886732,0.03809814,169.26,169.22,0.04049578]
[1740180887533,0.03809814,169.26,169.24,5.9113]
[1740180887832,0.03809814,169.26,169.22,0.04049578]
[1740180888928,0.03809814,169.26,169.24,5.9113]
[1740180889839,5.9112,169.25,169.22,5.95259578]
[1740180892736,0.03809814,169.26,169.23,5.9119]
[1740180892932,5.94909814,169.26,169.23,5.9119]
[1740180893836,0.03809814,169.26,169.22,0.04049578]
[1740180894738,5.9117,169.24,169.22,0.04049578]
[1740180896942,0.03809814,169.26,169.22,5.95269578]
[1740180897242,5.94909814,169.26,169.22,0.04049578]
[1740180897443,5.94909814,169.26,169.23,5.9117]
[1740180898043,5.9112,169.25,169.23,5.9117]
[1740180898344,0.03809814,169.26,169.23,5.9117]
[1740180899243,5.94919814,169.26,169.23,5.9117]
[1740180899444,5.94919814,169.26,169.22,0.04049578]
[1740180899445,194.0,169.41,169.24,15.08536093]
[1740180899641,3.6588,169.39,169.27,15.08536093]
[1740180900240,162.5721073,169.43,169.3,15.08536093]
[1740180900742,0.03834063,169.38,169.35,0.04028219]
[1740180901143,0.03834063,169.38,169.37,5.907]
[1740180903150,0.03834063,169.38,169.35,0.04028219]
[1740180905952,5.907,169.37,169.35,0.04028219]
[1740180906751,5.9074,169.36,169.35,0.04028219]
[1740180907146,0.03834063,169.38,169.35,0.04028219]
[1740180907349,0.03834063,169.38,169.36,5.9071]
[1740180907951,5.94504063,169.38,169.35,0.04028219]
[1740180908252,0.03834063,169.38,169.35,0.04028219]
[1740180909453,5.9074,169.36,169.35,0.04028219]
[1740180911352,5.9092,169.31,169.25,3.5527]
[1740180911558,5.9092,169.31,169.27,5.9103]
[1740180911756,15.08536093,169.36,169.25,3.5527]
[1740180912255,3.616,169.37,169.25,3.5527]
[1740180912563,0.04177717,169.33,169.29,0.04406096]
[1740180913050,0.04177717,169.33,169.31,5.9089]
[1740180913861,0.04177717,169.33,169.3,5.9094]
[1740180914361,5.95017717,169.33,169.3,5.9094]
[1740180914661,0.04177717,169.33,169.3,5.9094]
[1740180914863,5.95017717,169.33,169.3,5.9094]
[1740180915464,5.9093,169.31,169.29,0.04406096]
[1740180915768,0.04177717,169.33,169.29,0.04406096]
[1740180916263,5.95047717,169.33,169.3,5.9094]
[1740180916960,5.95047717,169.33,169.29,5.95366096]
[1740180917258,0.04177717,169.33,169.29,5.95366096]
[1740180917464,5.9088,169.32,169.29,5.95366096]
[1740180917664,0.04177717,169.33,169.29,0.04406096]
[1740180918059,5.9092,169.31,169.29,0.04406096]
[1740180918262,0.04177717,169.33,169.29,0.04406096]
[1740180919368,5.909,169.32,169.29,5.95376096]
[1740180920368,0.04177717,169.33,169.29,0.04406096]
[1740180921069,0.04177717,169.33,169.3,5.9092]
[1740180921070,5.95027717,169.33,169.3,5.9092]
[1740180922467,5.95027717,169.33,169.29,5.95366096]
[1740180923677,5.909,169.32,169.29,5.95366096]
[1740180923868,0.04177717,169.33,169.29,0.04406096]
[1740180924675,15.1271381,169.33,169.29,0.04406096]
[1740180924970,5.9095,169.3,169.29,0.04406096]
[1740180925564,1.8459,169.32,169.29,0.04406096]
[1740180925770,0.04177717,169.33,169.29,0.04406096]
[1740180926170,0.04177717,169.33,169.32,5.9088]
[1740180926572,0.04177717,169.33,169.29,0.04406096]
[1740180926775,0.04177717,169.33,169.29,5.95356096]
[1740180927373,0.04177717,169.33,169.29,0.04406096]
[1740180927872,5.9094,169.31,169.29,0.04406096]
[1740180928076,0.04177717,169.33,169.29,0.04406096]
[1740180929365,5.909,169.32,169.29,0.04406096]
[1740180929564,0.04177717,169.33,169.29,0.04406096]
[1740180929976,5.9095,169.3,169.29,0.04406096]
[1740180930677,5.9095,169.3,169.29,6.096e-05]
[1740180931169,20.99486093,169.3,169.29,6.096e-05]
[1740180931377,20.99486093,169.3,169.19,61.25728891]
[1740180931378,16.06884673,169.3,169.19,61.25728891]
[1740180931671,0.9834858,169.29,169.19,61.25728891]
[1740180931871,0.9834858,169.29,169.2,5.9128]
[1740180932471,0.04322526,169.26,169.23,0.0402452]
[1740180932775,0.04322526,169.26,169.23,5.9518452]
[1740180933277,0.04322526,169.26,169.23,0.0402452]
[1740180933475,0.04322526,169.26,169.24,5.9115]
[1740180933879,0.04322526,169.26,169.23,0.0402452]
[1740180934071,0.04322526,169.26,169.25,5.9112]
[1740180934279,7.86,169.35,169.23,15.12560613]
[1740180934473,0.98326536,169.34,169.24,1.7899]
[1740180935074,0.98326536,169.34,169.25,5.9112]
[1740180935374,0.04313292,169.31,169.28,0.04203423]
[1740180935570,5.9098,169.29,169.28,0.04203423]
[1740180935775,0.04313292,169.31,169.28,0.04203423]
[1740180936381,5.9098,169.29,169.28,0.04203423]
[1740180938571,5.9098,169.29,169.28,3.423e-05]
[1740180938977,0.98352605,169.29,169.19,61.25728891]
[1740180939173,5.9127,169.21,169.19,61.25728891]
[1740180939377,5.9127,169.21,169.18,9.598]
[1740180939580,29.56085831,169.3,169.18,9.598]
[1740180939878,5.9125,169.22,169.18,9.598]
[1740180940070,5.9125,169.22,169.18,9.5979]
[1740180940275,5.9127,169.21,169.18,9.64231709]
[1740180940475,5.9127,169.21,169.18,5.95781709]
[1740180940682,0.04293965,169.22,169.18,0.04441709]
[1740180940875,5.9131,169.2,169.18,0.04441709]
[1740180941077,0.04293965,169.22,169.18,0.04441709]
[1740180941372,0.04293965,169.22,169.19,5.9132]
[1740180941977,0.04293965,169.22,169.18,0.04441709]
[1740180941978,5.9126,169.21,169.18,5.95791709]
[1740180942179,0.04293965,169.22,169.18,0.04441709]
[1740180942685,5.95543965,169.22,169.18,5.95781709]
[1740180942884,0.04293965,169.22,169.18,0.04441709]
[1740180943481,5.95553965,169.22,169.18,5.95791709]
[1740180943682,0.04293965,169.22,169.18,0.04441709]
[1740180944088,5.9128,169.21,169.18,0.04441709]
[1740180944987,0.04293965,169.22,169.18,0.04441709]
[1740180945188,0.04293965,169.22,169.19,5.9132]
[1740180945391,0.04293965,169.22,169.18,0.04441709]
[1740180945584,5.9129,169.21,169.18,0.04441709]
[1740180945784,5.9129,169.21,169.18,5.95791709]
[1740180946886,0.04293965,169.22,169.18,0.04441709]
[1740180947592,5.9129,169.21,169.18,5.95791709]
[1740180947793,5.9129,169.21,169.18,0.04441709]
[1740180947994,0.04293965,169.22,169.18,0.04441709]
[1740180949391,5.9126,169.21,169.18,5.95781709]
[1740180949791,0.04293965,169.22,169.18,0.04441709]
[1740180949996,5.9129,169.21,169.18,5.95781709]
[1740180950188,0.04293965,169.22,169.18,0.04441709]
[1740180951495,5.9128,169.21,169.18,5.95781709]
[1740180951694,0.04293965,169.22,169.18,0.04441709]
[1740180951895,5.913,169.2,169.18,0.04441709]
[1740180952195,0.04293965,169.22,169.18,0.04441709]
[1740180952396,5.9126,169.21,169.18,5.95791709]
[1740180952791,0.04293965,169.22,169.18,0.04441709]
[1740180952995,5.95543965,169.22,169.19,5.9133]
[1740180953496,5.9127,169.21,169.19,5.9133]
[1740180955298,0.04293965,169.22,169.18,0.04441709]
[1740180955804,0.04293965,169.22,169.21,5.9126]
[1740180957605,0.04293965,169.22,169.19,5.9132]
[1740180957900,5.95543965,169.22,169.19,5.9132]
[1740180958602,5.9132,169.2,169.18,0.04441709]
[1740180958801,0.04293965,169.22,169.18,0.04441709]
[1740180959303,5.95533965,169.22,169.18,0.04441709]
[1740180959703,5.95533965,169.22,169.19,5.9132]
[1740180960203,0.04293965,169.22,169.2,5.9128]
[1740180960404,0.04293965,169.22,169.18,0.04441709]
[1740180960803,0.04293965,169.22,169.19,5.9133]
[1740180961103,0.04293965,169.22,169.18,0.04441709]
[1740180962197,0.98364184,169.29,169.19,15.10015675]
[1740180962501,7.86,169.35,169.26,5.9106]
[1740180962703,0.98336994,169.34,169.2,3.6295]
[1740180962898,5.9101,169.29,169.2,3.6295]
[1740180963094,13.1807,169.35,169.2,3.6295]
[1740180963397,0.04333115,169.29,169.26,0.03886138]
[1740180963594,5.95323115,169.29,169.26,5.94946138]
[1740180964807,0.04333115,169.29,169.26,0.03886138]
[1740180965498,5.9105,169.27,169.26,0.03886138]
[1740180966898,21.01065675,169.27,169.26,6.138e-05]
[1740180967097,21.99436943,169.27,169.26,6.138e-05]
[1740180967405,5.9125,169.22,169.18,5.9136]
[1740180967599,15.10015675,169.27,169.18,5.9136]
[1740180968207,15.10015675,169.27,169.2,5.9127]
[1740180968403,5.9125,169.22,169.21,0.03855208]
[1740180973211,5.9122,169.23,169.21,0.03855208]
[1740180974007,0.04471333,169.24,169.21,0.03855208]
[1740180974209,0.04471333,169.24,169.23,5.9119]
[1740180977811,0.04471333,169.24,169.21,0.03855208]
[1740180978012,0.04471333,169.24,169.22,5.9122]
[1740180983414,0.04471333,169.24,169.21,5.95105208]
[1740180985716,0.04471333,169.24,169.21,0.03855208]
[1740180986417,5.9121,169.23,169.21,0.03855208]
[1740180986816,0.04471333,169.24,169.21,0.03855208]
[1740180987014,5.9122,169.23,169.21,0.03855208]
[1740180987710,0.04471333,169.24,169.21,0.03855208]
[1740180988015,5.9123,169.22,169.21,0.03855208]
[1740180994018,15.14487008,169.24,169.13,3.5965]
[1740180994215,15.14487008,169.24,169.15,5.9147]
[1740180994216,5.9139,169.18,169.15,5.9147]
[1740180994418,15.10015675,169.18,169.06,158.58930347]
[1740180994619,15.10015675,169.18,169.07,5.2115]
[1740180994814,5.9149,169.15,169.12,5.9157]
[1740180995023,15.10015675,169.18,169.12,5.9157]
[1740180995223,0.041088,169.15,169.12,5.95585148]
[1740180995924,5.955988,169.15,169.12,5.95585148]
[1740180996125,0.041088,169.15,169.13,5.9151]
[1740180996323,0.041088,169.15,169.12,0.04015148]
[1740180997228,5.9153,169.14,169.12,0.04015148]
[1740180997429,0.041088,169.15,169.12,0.04015148]
[1740180998025,0.041088,169.15,169.13,5.9152]
[1740180998226,0.041088,169.15,169.12,0.04015148]
[1740180999020,0.041088,169.15,169.14,5.915]
[1740180999424,15.10015675,169.22,169.12,0.04015148]
[1740180999628,21.01265675,169.22,169.18,5.9135]
[1740180999824,21.01265675,169.22,169.09,15.10015675]
[1740180999825,15.10015675,169.22,169.09,15.10015675]
[1740181000029,15.10015675,169.22,169.07,3.5016]
[1740181000331,5.9137,169.18,169.07,3.5016]
[1740181000530,0.04257822,169.16,169.13,0.04493179]
[1740181001435,0.04257822,169.16,169.15,5.9146]
[1740181007634,1.8233,169.25,169.14,1.7745]
[1740181007941,5.9118,169.24,169.21,5.9124]
[1740181008941,5.95299272,169.24,169.21,5.95309281]
[1740181010144,0.04119272,169.24,169.22,5.912]
[1740181011641,0.04119272,169.24,169.23,5.9119]
[1740181014346,0.04119272,169.24,169.21,0.04069281]
[1740181014543,5.95279272,169.24,169.21,0.04069281]
[1740181015450,5.95279272,169.24,169.21,5.95299281]
[1740181015651,0.04119272,169.24,169.21,0.04069281]
[1740181016449,5.95289272,169.24,169.21,5.95319281]
[1740181018453,5.95289272,169.24,169.21,0.04069281]
[1740181018454,0.04119272,169.24,169.21,0.04069281]
[1740181019252,5.9123,169.22,169.21,0.04069281]
[1740181021265,18.55065675,169.23,169.12,1.7565]
[1740181021465,15.10015675,169.2,169.11,65.1698302]
[1740181021862,15.10015675,169.2,169.11,71.0857302]
[1740181022459,5.9147,169.15,169.14,0.03994413]
[1740181022757,15.13775804,169.17,169.07,5.9174]
[1740181022975,5.9167,169.1,169.04,89.57301555]
[1740181023160,5.9167,169.1,169.05,14.01934737]
[1740181023361,15.10015675,169.14,169.05,14.01934737]
[1740181024061,0.04283297,169.11,169.1,5.9164]
[1740181024260,7.47,169.14,169.08,0.0412326]
[1740181024461,0.03872835,169.12,169.08,0.0412326]
[1740181026060,0.03872835,169.12,169.08,5.9580326]
[1740181026261,15.10015675,169.11,169.08,0.0412326]
[1740181026466,21.01635675,169.11,169.08,0.0412326]
[1740181026667,0.03872835,169.12,169.08,0.0412326]
[1740181026970,0.03872835,169.12,169.09,5.9167]
[1740181027267,0.03872835,169.12,169.08,0.0412326]
[1740181028168,0.03872835,169.12,169.11,5.9161]
[1740181028570,0.03872835,169.12,169.08,0.0412326]
[1740181028571,4.44981676,169.18,169.09,5.4038]
[1740181028866,15.10015675,169.17,169.09,3.6974]
[1740181029065,15.10015675,169.17,169.05,1.857]
[1740181029266,5.9161,169.11,169.05,1.857]
[1740181029569,15.10015675,169.14,169.05,1.857]
[1740181029768,0.03893029,169.1,169.06,0.03902149]
[1740181029969,5.95563029,169.1,169.06,5.95682149]
[1740181030169,0.03893029,169.1,169.06,5.95682149]
[1740181030671,5.917,169.09,169.06,5.95682149]
[1740181030971,0.03893029,169.1,169.06,0.03902149]
[1740181031173,0.03893029,169.1,169.08,5.9171]
[1740181031972,0.03893029,169.1,169.08,5.9169]
[1740181034074,0.03893029,169.1,169.09,5.9168]
[1740181034970,0.03893029,169.1,169.06,0.03902149]
[1740181035973,5.95553029,169.1,169.07,5.9174]
[1740181037877,5.9169,169.09,169.06,5.95672149]
[1740181038470,0.03893029,169.1,169.06,0.03902149]
[1740181038978,0.03893029,169.1,169.07,5.9173]
[1740181039178,5.95553029,169.1,169.07,5.9173]
[1740181039576,0.03893029,169.1,169.06,0.03902149]
[1740181040474,5.95553029,169.1,169.06,0.03902149]
[1740181040672,0.03893029,169.1,169.09,5.9168]
[1740181042578,3.029e-05,169.1,169.09,5.9168]
[1740181043479,3.53,169.18,169.17,5.914]
[1740181043979,5.9132,169.2,169.11,15.10015675]
[1740181044176,5.9132,169.2,169.16,5.9141]
[1740181044374,199.5068,169.25,169.16,5.9141]
[1740181044574,5.9133,169.2,169.16,5.9141]
[1740181044775,199.5068,169.25,169.19,0.03805092]
[1740181044776,0.04140052,169.22,169.19,0.03805092]
[1740181045173,5.913,169.2,169.19,0.03805092]
[1740181045378,15.10015675,169.2,169.07,5.398]
[1740181045574,5.9145,169.16,169.12,5.9154]
[1740181045774,5.9145,169.16,169.07,5.398]
[1740181045970,15.10015675,169.2,169.07,5.398]
[1740181046679,0.03803889,169.15,169.13,5.9152]
[1740181046871,0.03803889,169.15,169.12,0.0414682]
[1740181047682,0.03803889,169.15,169.14,5.915]
[1740181053480,15.10015675,169.22,169.12,0.0414682]
[1740181053481,1.7731,169.24,169.19,5.913]
[1740181053680,1.7731,169.24,169.1,15.10015675]
[1740181053883,3.73,169.25,169.13,15.10015675]
[1740181054085,3.73,169.25,169.14,3.6703]
[1740181054385,0.90275684,169.28,169.16,15.10015675]
[1740181054886,0.03954104,169.24,169.2,0.04274877]
[1740181055786,5.9123,169.22,169.2,0.04274877]
[1740181056184,0.03954104,169.24,169.2,0.04274877]
[1740181056385,5.9126,169.21,169.2,0.04274877]
[1740181057484,15.10015675,169.22,169.12,5.66278878]
[1740181057785,7.89954104,169.24,169.12,5.66278878]
[1740181057786,15.10015675,169.19,169.12,5.9157]
[1740181057986,15.10015675,169.19,169.11,70.04046543]
[1740181058290,15.10015675,169.22,169.11,70.04046543]
[1740181058685,0.04235759,169.18,169.16,5.914]
[1740181059288,0.04235759,169.18,169.15,0.03842855]
[1740181060086,5.914,169.17,169.15,0.03842855]
[1740181060286,0.04235759,169.18,169.15,0.03842855]
[1740181061186,5.9144,169.16,169.15,0.03842855]
[1740181062885,0.04235759,169.18,169.15,0.03842855]
[1740181064684,5.9144,169.16,169.15,0.03842855]
[1740181072190,5.95615759,169.18,169.15,0.03842855]
[1740181072493,0.04235759,169.18,169.15,0.03842855]
[1740181072696,5.95625759,169.18,169.15,0.03842855]
[1740181073187,0.04235759,169.18,169.15,0.03842855]
[1740181074390,0.04235759,169.18,169.16,5.9142]
[1740181075490,0.04235759,169.18,169.15,0.03842855]
[1740181076196,5.9144,169.16,169.15,0.03842855]
[1740181076401,15.10015675,169.16,169.07,1.7136]
[1740181076694,15.10015675,169.16,169.08,5.9169]
[1740181077096,15.10015675,169.13,169.05,32.14930347]
[1740181077701,5.9168,169.1,169.07,0.04481593]
[1740181078296,5.9168,169.1,169.07,5.96231593]
[1740181078895,5.9168,169.09,169.07,0.04481593]
[1740181082096,5.9167,169.1,169.07,0.04481593]
[1740181082299,0.03786354,169.11,169.07,0.04481593]
[1740181082696,0.03786354,169.11,169.08,5.9169]
[1740181082697,5.95426354,169.11,169.08,5.9169]
[1740181083292,0.03786354,169.11,169.07,0.04481593]
[1740181083598,5.9166,169.1,169.07,5.96221593]
[1740181084192,5.9169,169.09,169.07,0.04481593]
[1740181084697,0.03786354,169.11,169.07,0.04481593]
[1740181084894,5.9167,169.1,169.07,5.96231593]
[1740181085697,0.03786354,169.11,169.07,0.04481593]
[1740181085995,5.9171,169.08,169.07,0.04481593]
[1740181091098,0.03786354,169.11,169.07,0.04481593]
[1740181091497,0.03786354,169.11,169.09,5.9165]
[1740181092808,5.95396354,169.11,169.08,5.917]
[1740181093503,0.03786354,169.11,169.1,5.9164]
[1740181095210,0.03786354,169.11,169.07,0.04481593]
[1740181096212,5.9171,169.08,169.07,0.04481593]
[1740181098714,5.9194,169.02,168.95,8.10124737]
[1740181098914,5.9194,169.02,168.95,13.57134737]
[1740181099310,22.96015675,169.11,168.96,5.69382499]
[1740181099611,0.98482708,169.1,169.0,5.9197]
[1740181099812,0.04386235,169.07,169.03,0.03780395]
[1740181100216,5.9185,169.04,169.03,0.03780395]
[1740181101721,5.921,168.97,168.93,32.14930347]
[1740181101913,194.0,169.1,169.01,5.9196]
[1740181102108,0.98489721,169.09,168.94,5.69852652]
[1740181102316,5.9188,169.04,168.94,5.69852652]
[1740181102617,197.5479,169.1,168.99,5.9201]
[1740181102818,0.03760394,169.01,168.99,5.9201]
[1740181103015,15.10015675,169.08,168.99,5.9201]
[1740181103210,0.03913334,169.02,168.99,5.9201]
[1740181103714,0.03913334,169.02,168.99,5.95907776]
[1740181105018,0.03913334,169.02,168.99,0.03897776]
[1740181106119,0.03913334,169.02,169.01,5.9196]
[1740181107120,3.334e-05,169.02,169.01,5.9196]
[1740181109314,5.3355,169.16,169.0,9.69051194]
[1740181109520,5.3355,169.16,169.04,15.10015675]
[1740181109820,5.9154,169.14,169.05,5.2554]
[1740181110316,0.04273078,169.11,169.1,5.9162]
[1740181115519,5.9145,169.16,169.08,0.03984671]
[1740181115724,3.6458,169.21,169.13,5.9153]
[1740181116628,5.9136,169.19,169.13,5.9153]
[1740181116816,0.03885447,169.19,169.15,0.04084432]
[1740181117022,1.8448,169.24,169.15,0.04084432]
[1740181117221,0.03951515,169.19,169.15,0.04084432]
[1740181117417,0.03951515,169.19,169.17,5.9139]
[1740181117821,0.03951515,169.19,169.15,0.04084432]
[1740181118019,0.03951515,169.19,169.18,5.9137]
[1740181119025,16.92545675,169.29,169.15,0.04084432]
[1740181119224,16.92545675,169.29,169.22,5.912]
[1740181119424,1.7464,169.27,169.22,5.912]
[1740181119727,0.90275684,169.28,169.23,5.9118]
[1740181120128,0.04073298,169.27,169.24,0.04459053]
[1740181120327,0.90275684,169.28,169.15,5.67231058]
[1740181120534,0.03911824,169.27,169.24,0.03799509]
[1740181120734,6.81295684,169.28,169.23,5.9119]
[1740181120929,0.04411651,169.27,169.24,0.03959966]
[1740181122336,5.9112,169.25,169.24,0.03959966]
[1740181131741,5.9127,169.21,169.18,5.9135]
[1740181132842,5.95191088,169.21,169.18,5.9547382]
[1740181133642,0.03921088,169.21,169.19,5.9132]
[1740181134542,0.03921088,169.21,169.2,5.913]
[1740181140446,0.03921088,169.21,169.18,0.0412382]
[1740181140647,0.03921088,169.21,169.19,5.9131]
[1740181141449,0.03921088,169.21,169.2,5.913]
[1740181141750,0.90275684,169.28,169.18,0.0412382]
[1740181142251,15.10015675,169.35,169.19,15.10015675]
[1740181142551,0.98340232,169.34,169.2,3.4569]
[1740181142949,0.04442212,169.29,169.28,5.91]
[1740181143151,5.9087,169.33,169.22,15.10015675]
[1740181143350,0.03862133,169.3,169.27,0.04291688]
[1740181143850,2.133e-05,169.3,169.29,5.9098]
[1740181144043,167.9753073,169.41,169.28,1.7891]
[1740181144246,0.9829238,169.4,169.28,1.7891]
[1740181144448,0.9829238,169.4,169.28,16.88925675]
[1740181144648,5.4032,169.41,169.28,16.88925675]
[1740181144942,5.9064,169.39,169.28,16.88925675]